bitfinex/quotes_BTCUSD_20220202
["timestamp","ask_amount","ask_price","bid_price","bid_amount"]
[1643791806673,0.522362,38363.0,38362.0,0.0031]
[1643791806871,0.5,38363.0,38362.0,0.0031]
[1643791807271,0.02163135,38367.0,38362.0,0.0031]
[1643791808072,0.022362,38366.0,38362.0,0.0031]
[1643791808272,0.08347882,38367.0,38362.0,0.0031]
[1643791808474,0.14864386,38367.0,38362.0,0.0531]
[1643791808672,0.36555037,38367.0,38362.0,0.0531]
[1643791808977,0.06516504,38367.0,38365.0,0.05]
[1643791809176,0.00127693,38370.0,38366.0,0.17288356]
[1643791809374,0.06643867,38370.0,38365.0,0.05]
[1643791809575,0.06643867,38370.0,38363.0,0.18181934]
[1643791809775,0.06516174,38370.0,38363.0,0.18064162]
[1643791809975,0.06643873,38370.0,38364.0,0.05]
[1643791810801,0.06643873,38370.0,38363.0,0.18181932]
[1643791810999,0.06516174,38370.0,38366.0,0.05]
[1643791811199,0.06643872,38370.0,38366.0,0.05]
[1643791812000,0.022362,38369.0,38366.0,0.05]
[1643791812201,0.022362,38369.0,38364.0,0.05]
[1643791812202,0.087528,38369.0,38364.0,0.05]
[1643791812401,0.06516667,38368.0,38364.0,0.05]
[1643791815746,0.06516667,38368.0,38363.0,0.30122292]
[1643791815947,0.06516667,38368.0,38366.0,0.05]
[1643791816948,0.06522631,38369.0,38366.0,0.05]
[1643791817151,6.031e-05,38369.0,38366.0,0.05]
[1643791817991,3.1e-07,38369.0,38368.0,0.27712537]
[1643791818393,3.1e-07,38369.0,38366.0,0.180306]
[1643791819193,3.1e-07,38369.0,38367.0,0.17584747]
[1643791819793,0.065149,38376.0,38367.0,0.17584747]
[1643791820000,0.38,38384.0,38367.0,0.17584747]
[1643791820001,0.06514326,38381.0,38369.0,0.130294]
[1643791820196,0.38,38384.0,38380.0,0.05]
[1643791820197,0.88,38384.0,38380.0,0.05]
[1643791820396,0.022362,38383.0,38380.0,0.05]
[1643791821196,0.022362,38384.0,38383.0,0.05]
[1643791821396,0.022362,38385.0,38383.0,0.05]
[1643791821840,0.40122303,38387.0,38377.0,0.10395]
[1643791821841,0.022362,38386.0,38377.0,0.10395]
[1643791822044,0.27095382,38387.0,38386.0,0.05]
[1643791822242,0.29331582,38387.0,38386.0,0.05]
[1643791822941,0.29331582,38387.0,38379.0,0.25416917]
[1643791823141,0.27095382,38387.0,38386.0,0.05]
[1643791823341,0.29331582,38387.0,38386.0,0.05]
[1643791823742,0.022362,38387.0,38381.0,0.27684672]
[1643791823942,0.00127526,38388.0,38383.0,0.05]
[1643791824143,0.00127526,38388.0,38381.0,0.31366672]
[1643791824144,0.022362,38387.0,38386.0,0.05]
[1643791824343,0.02363728,38387.0,38386.0,0.05]
[1643791825397,0.022362,38387.0,38386.0,0.05]
[1643791828996,0.022362,38387.0,38380.0,0.05]
[1643791828997,0.28372007,38387.0,38380.0,0.05]
[1643791829248,0.065143,38384.0,38380.0,0.05]
[1643791829448,0.022362,38383.0,38380.0,0.05]
[1643791829651,0.022362,38383.0,38378.0,0.05]
[1643791829848,0.22335976,38380.0,38378.0,0.05]
[1643791830348,0.0808984,38381.0,38378.0,0.05]
[1643791830648,0.1308984,38381.0,38378.0,0.05]
[1643791831449,0.19476635,38381.0,38378.0,0.05]
[1643791831650,0.19604172,38381.0,38378.0,0.05]
[1643791832050,0.0664187,38381.0,38378.0,0.05]
[1643791832253,0.00127537,38381.0,38378.0,0.05]
[1643791832749,0.065144,38382.0,38378.0,0.05]
[1643791832994,0.00127537,38381.0,38378.0,0.05]
[1643791833392,0.00127537,38381.0,38376.0,0.27794874]
[1643791833592,0.00127537,38381.0,38380.0,0.05]
[1643791833793,0.065144,38382.0,38380.0,0.05]
[1643791834394,0.10469776,38384.0,38380.0,0.05]
[1643791834596,0.05,38385.0,38383.0,0.05]
[1643791834902,0.28939845,38388.0,38383.0,0.05]
[1643791835097,0.28939845,38388.0,38377.0,0.22860205]
[1643791835296,0.0012753,38386.0,38377.0,0.22860205]
[1643791835496,0.0012753,38386.0,38383.0,0.22556461]
[1643791835696,0.0012753,38386.0,38385.0,0.05]
[1643791836197,0.00590118,38391.0,38385.0,0.24651619]
[1643791836501,0.00590118,38391.0,38385.0,0.05]
[1643791836503,0.00127528,38387.0,38385.0,0.05]
[1643791836744,0.00127528,38387.0,38384.0,0.26565845]
[1643791836746,0.00127528,38387.0,38386.0,0.05]
[1643791837346,0.00590118,38391.0,38386.0,0.05]
[1643791837648,0.00127526,38388.0,38387.0,0.25457846]
[1643791837844,0.00127526,38388.0,38387.0,0.05]
[1643791838046,0.00127526,38388.0,38387.0,0.2475686]
[1643791838343,0.00127526,38388.0,38387.0,0.05]
[1643791838544,0.00590118,38391.0,38387.0,0.05]
[1643791838745,0.00127525,38389.0,38386.0,0.19303392]
[1643791838945,0.00127525,38389.0,38384.0,0.26589151]
[1643791839145,0.00127525,38389.0,38388.0,0.05]
[1643791839345,0.06427882,38393.0,38388.0,0.05]
[1643791839546,0.06512073,38392.0,38385.0,0.25]
[1643791839745,6.19e-05,38387.0,38384.0,0.065121]
[1643791839946,6.19e-05,38387.0,38386.0,0.05]
[1643791842599,6.19e-05,38387.0,38386.0,0.24968872]
[1643791843603,6.19e-05,38387.0,38386.0,0.05]
[1643791844640,0.35704887,38395.0,38386.0,0.05]
[1643791844842,0.072362,38394.0,38391.0,0.05]
[1643791845043,0.065126,38393.0,38391.0,0.05]
[1643791845242,0.022362,38392.0,38389.0,0.05]
[1643791845943,0.02364029,38392.0,38389.0,0.05]
[1643791846142,0.1235715,38392.0,38389.0,0.05]
[1643791846342,0.1235715,38392.0,38384.0,0.19943008]
[1643791846544,0.00127829,38392.0,38389.0,0.2662591]
[1643791846742,0.022362,38391.0,38389.0,0.3162591]
[1643791847143,0.065126,38393.0,38389.0,0.3162591]
[1643791847344,0.06512434,38391.0,38389.0,0.3162591]
[1643791848793,0.065126,38393.0,38389.0,0.2662591]
[1643791848993,0.25363515,38398.0,38391.0,0.05]
[1643791848994,0.1234,38398.0,38391.0,0.05]
[1643791849194,0.5,38402.0,38397.0,0.05]
[1643791849395,0.5,38402.0,38400.0,0.05]
[1643791849396,0.022362,38401.0,38400.0,0.05]
[1643791849595,0.022362,38401.0,38400.0,0.1822961]
[1643791849794,0.5,38402.0,38400.0,0.1822961]
[1643791850202,0.02036996,38404.0,38401.0,0.05]
[1643791850395,0.02036996,38404.0,38402.0,0.18831376]
[1643791850598,0.02036996,38404.0,38402.0,0.44923967]
[1643791850799,0.02164961,38404.0,38403.0,0.19266341]
[1643791851846,0.02036996,38404.0,38403.0,0.19266341]
[1643791852047,0.02036996,38404.0,38401.0,0.05]
[1643791852048,0.42036996,38404.0,38402.0,0.17539095]
[1643791852247,0.4,38404.0,38401.0,0.05]
[1643791852447,0.00127964,38405.0,38401.0,0.05]
[1643791852648,0.00127964,38405.0,38404.0,0.05]
[1643791853048,0.4062978,38412.0,38404.0,0.32868901]
[1643791853249,0.00127962,38406.0,38404.0,0.27868901]
[1643791853455,0.00127962,38406.0,38405.0,0.22713443]
[1643791854150,0.06509617,38409.0,38405.0,0.22713443]
[1643791854352,0.00127961,38407.0,38405.0,0.17713443]
[1643791854753,0.00127961,38407.0,38406.0,0.05]
[1643791854952,0.02364161,38407.0,38406.0,0.05]
[1643791855401,0.02364161,38407.0,38405.0,0.17713443]
[1643791855402,0.022362,38407.0,38405.0,0.17713443]
[1643791855596,0.022362,38407.0,38404.0,0.27868901]
[1643791855597,0.08653829,38406.0,38404.0,0.27868901]
[1643791855797,0.08653829,38406.0,38403.0,0.05]
[1643791856396,0.08653829,38406.0,38405.0,0.05]
[1643791856696,0.10890029,38406.0,38403.0,0.05]
[1643791856895,0.10890029,38406.0,38404.0,0.23506192]
[1643791856896,0.08781791,38406.0,38404.0,0.23506192]
[1643791857096,0.00127962,38406.0,38405.0,0.05]
[1643791857795,0.01852222,38409.0,38405.0,0.05]
[1643791857996,0.00127961,38407.0,38404.0,0.28506192]
[1643791858496,0.022362,38406.0,38405.0,0.05]
[1643791859346,0.00127961,38407.0,38405.0,0.05]
[1643791860248,0.07822749,38407.0,38405.0,0.05]
[1643791860449,0.022362,38406.0,38405.0,0.05]
[1643791860648,0.07822749,38407.0,38405.0,0.05]
[1643791860851,0.022362,38406.0,38405.0,0.05]
[1643791861650,0.022362,38406.0,38404.0,0.23506192]
[1643791861849,0.08746234,38406.0,38404.0,0.28506192]
[1643791862250,0.08736451,38406.0,38404.0,0.28506192]
[1643791862651,0.022362,38406.0,38404.0,0.28506192]
[1643791862897,0.022362,38406.0,38405.0,0.05]
[1643791863095,0.022362,38406.0,38404.0,0.23506192]
[1643791866644,0.07822749,38407.0,38405.0,0.05]
[1643791866842,0.022362,38406.0,38405.0,0.05]
[1643791867342,0.022362,38406.0,38396.0,0.0717083]
[1643791867343,0.022362,38406.0,38397.0,0.05]
[1643791867543,0.022362,38406.0,38388.0,0.87152934]
[1643791867544,0.27563864,38405.0,38395.0,0.05]
[1643791867743,0.27563864,38405.0,38392.0,0.05]
[1643791867744,0.139675,38404.0,38398.0,0.05]
[1643791868344,0.09437233,38396.0,38394.0,0.26541711]
[1643791869545,0.09437233,38396.0,38395.0,0.05]
[1643791869744,0.30999862,38396.0,38395.0,0.05]
[1643791870401,0.21562629,38396.0,38395.0,0.05]
[1643791870593,0.022362,38396.0,38395.0,0.05]
[1643791870796,0.022362,38396.0,38394.0,0.26541711]
[1643791870996,0.0522,38398.0,38395.0,0.05]
[1643791871197,0.02364329,38397.0,38395.0,0.05]
[1643791871599,0.02364329,38397.0,38394.0,0.26541711]
[1643791871797,0.2399213,38396.0,38394.0,0.26541711]
[1643791871997,0.422362,38395.0,38394.0,0.26541711]
[1643791872396,0.022362,38395.0,38394.0,0.26541711]
[1643791872795,0.322362,38395.0,38394.0,0.26541711]
[1643791873595,0.022362,38395.0,38394.0,0.26541711]
[1643791873996,0.00128131,38396.0,38395.0,0.05]
[1643791874643,0.0522,38398.0,38395.0,0.05]
[1643791874844,0.02364329,38397.0,38395.0,0.05]
[1643791875744,0.6189,38404.0,38395.0,0.05]
[1643791875943,0.6189,38404.0,38400.0,0.2914891]
[1643791876145,0.022362,38403.0,38400.0,0.2914891]
[1643791876342,0.022362,38403.0,38400.0,0.3414891]
[1643791876742,0.00589995,38405.0,38400.0,0.55523396]
[1643791876946,0.022362,38404.0,38400.0,0.55523396]
[1643791877545,0.022362,38404.0,38403.0,0.05]
[1643791877745,0.022362,38407.0,38406.0,0.27656968]
[1643791878498,0.02364492,38408.0,38406.0,0.27656968]
[1643791879500,0.022362,38408.0,38406.0,0.27656968]
[1643791879696,0.00128291,38409.0,38406.0,0.27656968]
[1643791879896,0.022362,38408.0,38406.0,0.27656968]
[1643791880896,0.02364491,38409.0,38406.0,0.27656968]
[1643791881748,0.02364491,38409.0,38405.0,0.05]
[1643791881947,0.022362,38409.0,38405.0,0.05]
[1643791882150,0.022362,38409.0,38401.0,0.05]
[1643791882151,0.0236449,38409.0,38401.0,0.05]
[1643791882349,0.25730818,38408.0,38401.0,0.05]
[1643791882548,0.022362,38407.0,38401.0,0.05]
[1643791882748,0.022362,38407.0,38401.0,0.35531919]
[1643791883150,0.022362,38407.0,38401.0,0.57829197]
[1643791883351,0.00128296,38406.0,38401.0,0.57829197]
[1643791883551,0.00128296,38406.0,38401.0,0.35531919]
[1643791883752,0.06638808,38406.0,38401.0,0.30531919]
[1643791883952,0.022362,38405.0,38403.0,0.05]
[1643791884552,0.34705139,38405.0,38391.0,0.065109]
[1643791884756,0.29400611,38403.0,38397.0,0.05]
[1643791885052,0.022362,38402.0,38397.0,0.05]
[1643791885903,0.02014822,38403.0,38401.0,0.05]
[1643791886102,0.022362,38402.0,38401.0,0.31125687]
[1643791886302,0.02014822,38403.0,38401.0,0.31125687]
[1643791887002,0.02014822,38403.0,38397.0,0.05]
[1643791887003,0.24263851,38402.0,38397.0,0.05]
[1643791887304,0.07608162,38402.0,38397.0,0.1151]
[1643791887801,0.20463072,38406.0,38397.0,0.0651]
[1643791888003,0.20463072,38406.0,38401.0,0.30566637]
[1643791888202,0.2294466,38405.0,38401.0,0.30566637]
[1643791888805,0.022362,38405.0,38401.0,0.30566637]
[1643791889148,0.022362,38406.0,38401.0,0.30566637]
[1643791889350,0.00128285,38405.0,38403.0,0.05]
[1643791890153,0.51954422,38408.0,38403.0,0.05]
[1643791890351,0.51954422,38408.0,38407.0,0.25308515]
[1643791890352,0.5,38408.0,38407.0,0.25308515]
[1643791890553,0.822362,38408.0,38407.0,0.25308515]
[1643791890952,0.322362,38408.0,38407.0,0.25308515]
[1643791891452,0.322362,38408.0,38405.0,0.05]
[1643791891653,0.022362,38407.0,38405.0,0.05]
[1643791894101,0.022362,38407.0,38403.0,0.28623792]
[1643791894703,0.022362,38407.0,38405.0,0.05]
[1643791895206,0.022362,38407.0,38403.0,0.33623792]
[1643791895404,0.022362,38407.0,38403.0,0.22114292]
[1643791895605,0.30128281,38408.0,38406.0,0.05]
[1643791895807,0.022362,38407.0,38406.0,0.05]
[1643791896206,0.022362,38407.0,38403.0,0.22114292]
[1643791896407,0.022362,38407.0,38404.0,0.05]
[1643791897251,0.022362,38407.0,38406.0,0.05]
[1643791897651,0.02364481,38407.0,38406.0,0.05]
[1643791898452,0.00128281,38407.0,38406.0,0.2318015]
[1643791898652,0.01826045,38411.0,38406.0,0.05]
[1643791898853,0.0012828,38408.0,38406.0,0.05]
[1643791899153,0.0012828,38408.0,38407.0,0.17648114]
[1643791899356,0.00119281,38408.0,38407.0,0.87605653]
[1643791899555,0.5,38415.0,38408.0,0.6]
[1643791899755,0.001,38416.0,38414.0,0.05]
[1643791899956,0.001,38416.0,38415.0,0.351334]
[1643791900432,0.001,38416.0,38415.0,0.55596472]
[1643791900613,0.001,38416.0,38415.0,0.351334]
[1643791902013,0.001,38416.0,38415.0,0.55095475]
[1643791903214,0.001,38416.0,38414.0,0.65716113]
[1643791903415,0.001,38416.0,38414.0,0.37818408]
[1643791906048,0.001,38416.0,38415.0,0.18064991]
[1643791906248,0.001,38416.0,38414.0,0.37818408]
[1643791906848,0.001,38416.0,38415.0,0.17497846]
[1643791907048,0.001,38416.0,38414.0,0.37818408]
[1643791907451,0.001,38416.0,38414.0,0.1]
[1643791907652,0.001,38416.0,38409.0,0.1186]
[1643791907913,0.001,38416.0,38412.0,0.05]
[1643791908107,0.11729,38418.0,38410.0,0.05]
[1643791908312,0.09068267,38412.0,38408.0,0.59360694]
[1643791908506,0.20797702,38412.0,38407.0,0.05]
[1643791909607,0.00128615,38411.0,38407.0,0.05]
[1643791910207,0.00128615,38411.0,38406.0,0.47327633]
[1643791910408,0.00128615,38411.0,38406.0,0.22623077]
[1643791910608,0.25797702,38412.0,38406.0,0.22623077]
[1643791910813,0.00128616,38410.0,38406.0,0.22623077]
[1643791911009,0.11730182,38409.0,38406.0,0.22623077]
[1643791911411,0.22038055,38408.0,38406.0,0.22623077]
[1643791911647,0.0522,38407.0,38406.0,0.22623077]
[1643791911848,0.0522,38407.0,38404.0,0.05]
[1643791912652,0.11730022,38407.0,38404.0,0.05]
[1643791912854,0.11730022,38407.0,38404.0,0.35524942]
[1643791913653,0.11730022,38407.0,38404.0,0.30524942]
[1643791913852,0.16730022,38407.0,38404.0,0.30524942]
[1643791914051,0.16730022,38407.0,38404.0,0.35524942]
[1643791914253,0.11730022,38407.0,38404.0,0.35524942]
[1643791915413,0.11730022,38407.0,38406.0,0.05]
[1643791915414,0.0522,38407.0,38406.0,0.05]
[1643791930603,0.09492536,38405.0,38404.0,0.30524942]
[1643791932206,0.09483904,38405.0,38404.0,0.30524942]
[1643791932805,0.06510374,38407.0,38404.0,0.30524942]
[1643791933005,0.28801018,38410.0,38404.0,0.30524942]
[1643791933205,0.0534879,38410.0,38404.0,0.30524942]
[1643791933406,0.1246,38415.0,38404.0,0.30524942]
[1643791933407,0.1768,38415.0,38409.0,0.05]
[1643791933607,0.01929559,38417.0,38414.0,0.05]
[1643791933807,0.01929559,38417.0,38416.0,0.05]
[1643791934006,0.10467704,38420.0,38416.0,0.05]
[1643791934255,0.10467704,38420.0,38407.0,0.19799122]
[1643791934256,0.01980406,38419.0,38407.0,0.19799122]
[1643791934457,0.01980406,38419.0,38417.0,0.05]
[1643791934458,0.23402425,38418.0,38417.0,0.05]
[1643791935056,0.10335776,38412.0,38410.0,0.05]
[1643791936758,0.10335776,38412.0,38408.0,0.48493677]
[1643791936969,0.10335776,38412.0,38408.0,0.31123317]
[1643791937359,0.10464569,38412.0,38410.0,0.05]
[1643791938354,0.10335776,38412.0,38408.0,0.31123317]
[1643791938555,0.00128791,38413.0,38408.0,0.31123317]
[1643791938954,0.00128791,38413.0,38408.0,0.48504872]
[1643791939153,0.00128791,38413.0,38408.0,2.49400499]
[1643791939557,0.28249997,38415.0,38412.0,0.05]
[1643791939755,0.09231049,38414.0,38408.0,0.48504872]
[1643791939953,0.09231049,38414.0,38408.0,0.31123317]
[1643791940156,0.09231049,38414.0,38410.0,0.05]
[1643791940354,0.09231049,38414.0,38408.0,0.31123317]
[1643791940554,0.09231049,38414.0,38410.0,0.05]
[1643791941453,0.09231049,38414.0,38408.0,0.48512376]
[1643791942255,0.09231049,38414.0,38413.0,0.05]
[1643791942456,0.09231049,38414.0,38408.0,0.48512376]
[1643791942657,0.36774501,38414.0,38408.0,0.535966]
[1643791942859,0.36774501,38414.0,38408.0,0.36123317]
[1643791943059,0.36774501,38414.0,38408.0,0.53595607]
[1643791943261,0.0012897,38413.0,38408.0,0.53595607]
[1643791944359,0.30359407,38414.0,38409.0,0.05]
[1643791944562,0.00128971,38412.0,38409.0,0.05]
[1643791945413,0.30359407,38414.0,38409.0,0.05]
[1643791945605,0.00128971,38412.0,38409.0,0.05]
[1643791945805,0.00128971,38412.0,38408.0,0.58972943]
[1643791946204,0.00128971,38412.0,38410.0,0.05]
[1643791946605,0.30359407,38414.0,38410.0,0.05]
[1643791946805,0.0012897,38413.0,38410.0,0.05]
[1643791947806,0.09231049,38414.0,38410.0,0.05]
[1643791948005,0.0012897,38413.0,38408.0,0.58972943]
[1643791948208,0.0012897,38413.0,38409.0,0.17487151]
[1643791948505,0.0012897,38413.0,38408.0,0.58972943]
[1643791948906,0.0012897,38413.0,38410.0,0.05]
[1643791949153,0.09231049,38414.0,38410.0,0.05]
[1643791949354,0.00128971,38412.0,38410.0,0.05]
[1643791950357,0.09231049,38414.0,38408.0,0.31123317]
[1643791950556,0.0012897,38413.0,38408.0,0.36123317]
[1643791950957,0.0012897,38413.0,38408.0,0.31123317]
[1643791951156,0.0012897,38413.0,38410.0,0.05]
[1643791951561,0.00589658,38420.0,38411.0,0.18379606]
[1643791951759,0.0012897,38413.0,38412.0,0.05]
[1643791951959,0.0012897,38413.0,38412.0,0.28717405]
[1643791952362,0.0012897,38413.0,38412.0,0.54541195]
[1643791952659,0.22303684,38423.0,38412.0,0.89637595]
[1643791952909,0.22303684,38423.0,38421.0,0.05]
[1643791953203,0.10493684,38423.0,38421.0,0.05]
[1643791953502,0.05133232,38425.0,38421.0,0.05]
[1643791953704,0.05133232,38425.0,38416.0,0.19402141]
[1643791953903,0.45133232,38425.0,38424.0,0.01485321]
[1643791954103,0.0012913,38425.0,38424.0,0.01485321]
[1643791954503,0.0012913,38425.0,38424.0,0.23688204]
[1643791954706,0.36465794,38434.0,38424.0,0.49322145]
[1643791954907,0.57470969,38435.0,38424.0,0.64818749]
[1643791954908,0.2623172,38435.0,38424.0,0.64818749]
[1643791955108,0.08714919,38430.0,38426.0,0.05]
[1643791955307,0.09811099,38429.0,38426.0,0.05]
[1643791955508,0.51,38436.0,38426.0,0.05]
[1643791955707,0.51,38436.0,38430.0,0.05]
[1643791955907,0.3909,38436.0,38431.0,0.27828877]
[1643791956309,0.05244141,38436.0,38431.0,0.27828877]
[1643791956506,0.10947462,38437.0,38432.0,0.25907206]
[1643791957557,0.011,38439.0,38434.0,0.05]
[1643791957755,0.00129919,38436.0,38435.0,0.4697492]
[1643791957957,0.002,38441.0,38440.0,0.05]
[1643791958154,0.002,38441.0,38440.0,0.2197492]
[1643791958353,0.002,38441.0,38440.0,0.52299174]
[1643791958554,0.002,38441.0,38440.0,1.18749467]
[1643791958754,0.002,38441.0,38440.0,0.93749467]
[1643791959755,0.06813,38454.0,38442.0,0.45]
[1643791959957,0.06813,38454.0,38443.0,1.0707132]
[1643791959958,0.0031,38454.0,38443.0,1.0707132]
[1643791960164,0.0031,38454.0,38452.0,0.05]
[1643791960414,0.0031,38454.0,38444.0,0.1]
[1643791960606,0.0031,38454.0,38453.0,0.21972804]
[1643791960812,0.0031,38454.0,38452.0,0.22973467]
[1643791961808,0.0031,38454.0,38452.0,0.48660974]
[1643791962309,0.0031,38454.0,38449.0,0.01896774]
[1643791963109,0.24922776,38452.0,38449.0,0.01896774]
[1643791963308,0.0031,38454.0,38451.0,0.22855813]
[1643791963711,0.55130233,38452.0,38451.0,0.22855813]
[1643791964349,0.83168607,38452.0,38451.0,0.22855813]
[1643791964750,0.83038374,38452.0,38451.0,0.22855813]
[1643791964953,0.28038374,38452.0,38451.0,0.22855813]
[1643791965356,0.28038374,38452.0,38444.0,0.02167656]
[1643791965554,0.00130232,38453.0,38445.0,0.13825801]
[1643791965752,0.00130232,38453.0,38451.0,0.2]
[1643791965954,0.0031,38454.0,38451.0,0.2]
[1643791966555,0.21995129,38454.0,38451.0,0.2]
[1643791966854,0.21995129,38454.0,38453.0,0.29035488]
[1643791967253,0.0031,38454.0,38453.0,0.29035488]
[1643791971107,0.0031,38454.0,38453.0,0.43182506]
[1643791971308,0.0031,38454.0,38453.0,0.29035488]
[1643791972657,0.3889,38464.0,38453.0,0.43214079]
[1643791972955,0.001,38464.0,38453.0,0.43214079]
[1643791973356,0.001,38464.0,38458.0,0.2081023]
[1643791973559,0.001,38464.0,38459.0,0.5]
[1643791973758,0.001,38470.0,38461.0,0.65]
[1643791974058,0.001,38470.0,38463.0,0.7]
[1643791974256,0.001,38470.0,38464.0,0.31000422]
[1643791974456,0.00130562,38468.0,38467.0,0.38214993]
[1643791974656,0.00130562,38468.0,38466.0,0.2618023]
[1643791975508,0.001,38470.0,38466.0,0.2618023]
[1643791975710,0.00130561,38469.0,38466.0,0.2618023]
[1643791976111,0.00130561,38469.0,38463.0,0.01888281]
[1643791976508,0.214744,38467.0,38463.0,0.01888281]
[1643791976708,0.13100666,38470.0,38463.0,0.01888281]
[1643791976907,0.00130563,38468.0,38463.0,0.01888281]
[1643791977106,0.00130563,38468.0,38465.0,0.26117313]
[1643791977308,0.08354473,38468.0,38465.0,0.26117313]
[1643791977509,0.06500463,38467.0,38465.0,0.26117313]
[1643791977708,0.00130563,38468.0,38465.0,0.26117313]
[1643791977907,0.001,38470.0,38465.0,0.26117313]
[1643791978107,0.21021895,38468.0,38465.0,0.26117313]
[1643791978607,0.00130563,38468.0,38465.0,0.26117313]
[1643791979263,0.10039752,38467.0,38465.0,0.26117313]
[1643791979664,0.00130562,38468.0,38465.0,0.26117313]
[1643791980266,0.00112479,38470.0,38465.0,0.26117313]
[1643791980667,0.00130562,38468.0,38467.0,0.24636899]
[1643791981069,0.00130562,38468.0,38465.0,0.26117313]
[1643791981467,0.00112479,38470.0,38465.0,0.26117313]
[1643791981666,0.00130562,38468.0,38465.0,0.26117313]
[1643791982066,0.21499713,38468.0,38465.0,0.26117313]
[1643791982466,0.00130562,38468.0,38465.0,0.26117313]
[1643791982667,0.00112479,38470.0,38465.0,0.26117313]
[1643791982916,0.00130562,38468.0,38465.0,0.26117313]
[1643791983309,0.21316759,38468.0,38465.0,0.26117313]
[1643791983910,0.21186197,38468.0,38465.0,0.26117313]
[1643791984111,0.21316759,38468.0,38462.0,0.01915989]
[1643791984313,0.15188492,38467.0,38462.0,0.01915989]
[1643791984510,0.0522,38466.0,38462.0,0.01915989]
[1643791984710,0.15432463,38465.0,38462.0,0.01915989]
[1643791985009,0.0522,38464.0,38462.0,0.01915989]
[1643791985210,0.0522,38464.0,38463.0,0.22717256]
[1643791985611,0.65470057,38464.0,38462.0,0.01915989]
[1643791985810,0.6599626,38464.0,38462.0,0.01915989]
[1643791986013,0.5022,38464.0,38462.0,0.01915989]
[1643791986854,0.5022,38464.0,38460.0,0.26288965]
[1643791987654,0.26386932,38462.0,38460.0,0.26288965]
[1643791987861,0.15269514,38461.0,38451.0,0.2]
[1643791988058,0.20489514,38461.0,38451.0,0.2]
[1643791988256,0.25489514,38461.0,38451.0,0.2]
[1643791988556,0.6521,38458.0,38451.0,0.2]
[1643791988759,0.6521,38458.0,38456.0,0.0216863]
[1643791988760,0.92170558,38457.0,38456.0,0.0216863]
[1643791988957,1.25472945,38457.0,38456.0,0.0216863]
[1643791989355,0.38522387,38457.0,38456.0,0.0216863]
[1643791989557,0.54991806,38457.0,38456.0,0.0216863]
[1643791990157,0.59991806,38457.0,38452.0,0.28801261]
[1643791990609,0.43522387,38457.0,38452.0,0.28801261]
[1643791990809,0.38522387,38457.0,38452.0,0.28801261]
[1643791991007,0.15496482,38456.0,38451.0,0.21853971]
[1643791991207,0.0522,38455.0,38451.0,0.21853971]
[1643791992210,0.0522,38455.0,38451.0,0.2]
[1643791992610,0.05350583,38455.0,38451.0,0.2]
[1643791993611,0.0522,38455.0,38451.0,0.2]
[1643791993811,0.05350583,38455.0,38451.0,0.2]
[1643791994661,0.0522,38455.0,38451.0,0.2]
[1643791994963,0.05350583,38455.0,38451.0,0.2]
[1643791995160,0.05350583,38455.0,38451.0,0.25]
[1643791995760,0.05350583,38455.0,38451.0,0.2]
[1643791995961,0.3032313,38455.0,38451.0,0.2]
[1643791996161,0.05350583,38455.0,38451.0,0.2]
[1643791997062,0.0522,38455.0,38451.0,0.19993034]
[1643791997263,0.08144689,38454.0,38451.0,0.19993034]
[1643791997463,0.0522,38453.0,38451.0,0.19993034]
[1643791998906,0.66433117,38452.0,38451.0,0.19993034]
[1643791999110,0.71653117,38452.0,38451.0,0.19993034]
[1643791999308,1.06653117,38452.0,38451.0,0.19993034]
[1643792000909,1.01653117,38452.0,38451.0,0.19993034]
[1643792001110,0.92469975,38451.0,38444.0,0.27042261]
[1643792001309,0.20718779,38450.0,38444.0,0.27042261]
[1643792001800,0.0522,38450.0,38444.0,0.27042261]
[1643792002199,0.00130593,38449.0,38447.0,0.25082389]
[1643792003099,0.23802297,38455.0,38447.0,0.25082389]
[1643792003301,0.05742287,38456.0,38450.0,0.27671175]
[1643792003499,0.15402736,38456.0,38450.0,0.64347927]
[1643792004101,0.40780299,38456.0,38450.0,0.66246239]
[1643792004405,0.40258012,38456.0,38450.0,0.01898312]
[1643792004602,0.00130583,38455.0,38450.0,0.01898312]
[1643792004905,0.0522,38454.0,38450.0,0.01898312]
[1643792005102,0.15466722,38453.0,38450.0,0.01898312]
[1643792005305,0.00130583,38455.0,38450.0,0.01898312]
[1643792005306,0.0522,38452.0,38450.0,0.01898312]
[1643792005514,0.72435555,38451.0,38450.0,0.01898312]
[1643792006313,0.72435555,38451.0,38445.0,0.02128224]
[1643792006512,0.08052539,38447.0,38445.0,0.02128224]
[1643792008015,0.28423392,38449.0,38445.0,0.02128224]
[1643792008216,0.27435555,38451.0,38444.0,0.20097672]
[1643792008416,0.17093634,38454.0,38444.0,0.20097672]
[1643792008617,0.17093634,38454.0,38442.0,0.36280644]
[1643792009016,0.07929716,38448.0,38442.0,0.36280644]
[1643792009758,0.00012196,38447.0,38440.0,0.0195644]
[1643792010159,0.00012196,38447.0,38442.0,0.01953579]
[1643792010359,0.28751192,38446.0,38442.0,0.01953579]
[1643792010560,0.16046862,38445.0,38442.0,0.01953579]
[1643792010760,0.16240775,38445.0,38442.0,0.01953579]
[1643792010961,0.0522,38444.0,38442.0,0.01953579]
[1643792011166,0.88742253,38443.0,38442.0,0.01953579]
[1643792011460,0.93962253,38443.0,38442.0,0.01953579]
[1643792012259,0.93962253,38443.0,38433.0,0.577]
[1643792012460,0.08957768,38439.0,38433.0,0.577]
[1643792012662,0.14177768,38439.0,38432.0,0.00122714]
[1643792012920,0.22291967,38437.0,38432.0,0.20541745]
[1643792013308,0.00130787,38438.0,38432.0,0.20541745]
[1643792013709,0.00130787,38438.0,38432.0,0.50676119]
[1643792013909,0.14177768,38439.0,38432.0,0.50676119]
[1643792014110,0.0522,38438.0,38432.0,0.50676119]
[1643792014811,0.0522,38438.0,38432.0,0.5266208]
[1643792015911,0.0522,38438.0,38432.0,0.01985961]
[1643792016110,0.0522,38438.0,38432.0,0.0393975]
[1643792016312,0.0522,38438.0,38432.0,0.01953789]